[Event "11th Dolomiti Open 2020"]
[Site "Forni di Sopra"]
[Date "2020.09.27"]
[Round "2.1"]
[White "Barp, Alberto"]
[Black "Basso, Pier Luigi"]
[Result "1/2-1/2"]
[ECO "E11"]
[WhiteElo "2377"]
[BlackElo "2603"]
[Annotator "ChessBase"]
[PlyCount "104"]
[EventDate "2020.09.26"]
[EventType "swiss"]
[EventCountry "ITA"]
[SourceTitle "playchess.com"]
[Source "ChessBase"]
[SourceQuality "1"]
[TimeControl "40/5400+30:1800+30"]

1. d4 {[%emt 0:00:00]} Nf6 {[%emt 0:00:55]} 2. c4 {[%emt 0:00:00]} e6 {[%emt 0:00:06]} 3. Nf3 {[%emt 0:00:00]} Bb4+ {[%emt 0:00:06]} 4. Bd2 {[%emt 0:00:00]} a5 {[%emt 0:00:36]} 5. g3 {[%emt 0:00:47]} d6 {[%emt 0:00:44]} 6. Bg2 {[%emt 0:00:50]} Nbd7 {[%emt 0:00:23]} 7. O-O {[%emt 0:01:38]} e5 {[%emt 0:00:14]} 8. Be3 {[%emt 0:03:47]} O-O {[%emt 0:00:26]} 9. a3 {[%emt 0:00:49]} exd4 {[%emt 0:00:17]} 10. Bxd4 {[%emt 0:00:30]} Bc5 {[%emt 0:00:08]} 11. Nc3 {[%emt 0:00:12]} Bxd4 {[%emt 0:02:35]} 12. Nxd4 {[%emt 0:00:28]} Nb6 {[%emt 0:00:13]} 13. Qc2 {[%emt 0:09:06]} c6 {[%emt 0:13:56]} 14. Ne4 {[%emt 0:06:45]} Nxe4 {[%emt 0:04:44]} 15. Bxe4 {[%emt 0:00:07]} Qf6 {[%emt 0:05:17]} 16. Rfd1 {[%emt 0:02:43]} g6 {[%emt 0:00:18]} 17. c5 {[%emt 0:06:58]} dxc5 {[%emt 0:07:46]} 18. Qxc5 {[%emt 0:00:07]} Nd7 {[%emt 0:00:11]} 19. Qc3 {[%emt 0:07:05]} Re8 {[%emt 0:04:37]} 20. Bg2 {[%emt 0:00:56]} a4 {[%emt 0:04:44]} 21. h3 {[%emt 0:05:57]} h5 {[%emt 0:02:59]} 22. Rac1 {[%emt 0:08:12]} Kh7 {[%emt 0:22:29]} 23. Rd2 {[%emt 0:08:09]} Ra6 {[%emt 0:07:43]} 24. e3 {[%emt 0:05:20]} Ne5 {[%emt 0:03:30]} 25. f4 {[%emt 0:03:41]} Nd7 {[%emt 0:00:52]} 26. e4 {[%emt 0:00:11]} Qe7 {[%emt 0:04:47]} 27. e5 {[%emt 0:03:32]} Nf8 {[%emt 0:00:11]} 28. Bf1 {[%emt 0:05:02]} Ra8 {[%emt 0:00:33]} 29. Nf3 {[%emt 0:01:00]} Kg8 {[%emt 0:00:53]} 30. Ng5 {[%emt 0:02:07]} Be6 {[%emt 0:04:43]} 31. Ne4 {[%emt 0:04:10]} Red8 {[%emt 0:00:13]} 32. Rd6 {[%emt 0:02:46]} Nh7 {[%emt 0:00:56]} 33. Rcd1 {[%emt 0:01:14]} Bd5 {[%emt 0:00:15]} 34. Qb4 {[%emt 0:04:22]} Qc7 {[%emt 0:04:18]} 35. Rxd8+ {[%emt 0:00:55]} Rxd8 {[%emt 0:00:10]} 36. Qxa4 {[%emt 0:02:37]} Bxe4 {[%emt 0:00:33]} 37. Rxd8+ {[%emt 0:00:05]} Qxd8 {[%emt 0:00:03]} 38. Qxe4 {[%emt 0:00:06]} Qb6+ {[%emt 0:00:03]} 39. Kh1 {[%emt 0:00:49]} Qf2 {[%emt 0:04:25]} 40. Qg2 {[%emt 0:05:02]} Qd4 {[%emt 0:00:05]} 41. h4 {[%emt 0:04:48]} Nf8 {[%emt 0:00:07]} 42. Qc2 {[%emt 0:05:11]} Qe3 {[%emt 0:04:27]} 43. Kg2 {[%emt 0:03:30]} Kg7 {[%emt 0:05:10]} 44. Bc4 {[%emt 0:08:58]} b5 {[%emt 0:00:36]} 45. Ba2 {[%emt 0:01:33]} c5 {[%emt 0:09:34]} 46. Qc3 {[%emt 0:01:35]} Qe2+ {[%emt 0:00:59]} 47. Kg1 {[%emt 0:00:08]} b4 {[%emt 0:08:39]} 48. axb4 {[%emt 0:01:18]} cxb4 {[%emt 0:00:01]} 49. Qxb4 {[%emt 0:04:09]} Qe3+ {[%emt 0:00:07]} 50. Kg2 {[%emt 0:00:10]} Qe2+ {[%emt 0:00:48]} 51. Kg1 {[%emt 0:00:11]} Qe3+ {[%emt 0:00:12]} 52. Kg2 {[%emt 0:01:06]} Qe2+ {[%emt 0:00:15]} 1/2-1/2

[Event "11th Dolomiti Open 2020"]
[Site "Forni di Sopra"]
[Date "2020.09.27"]
[Round "2.2"]
[White "Heberla, Bartlomiej"]
[Black "Bellia, Fabrizio"]
[Result "1-0"]
[ECO "E92"]
[WhiteElo "2566"]
[BlackElo "2421"]
[Annotator "ChessBase"]
[PlyCount "72"]
[EventDate "2020.09.26"]
[EventType "swiss"]
[EventCountry "ITA"]
[SourceTitle "playchess.com"]
[Source "ChessBase"]
[SourceQuality "1"]
[TimeControl "40/5400+30:1800+30"]

1. d4 {[%emt 0:07:12]} Nf6 {[%emt 0:00:00]} 2. Nf3 {[%emt 0:00:04]} g6 {[%emt 0:00:04]} 3. c4 {[%emt 0:08:53]} Bg7 {[%emt 0:00:24]} 4. Nc3 {[%emt 0:00:03]} d6 {[%emt 0:00:20]} 5. e4 {[%emt 0:01:32]} O-O {[%emt 0:00:08]} 6. Be2 {[%emt 0:00:31]} e5 {[%emt 0:00:13]} 7. d5 {[%emt 0:01:51]} a5 {[%emt 0:00:54]} 8. Bg5 {[%emt 0:06:59]} h6 {[%emt 0:00:22]} 9. Bh4 {[%emt 0:00:03]} Na6 {[%emt 0:00:50]} 10. Nd2 {[%emt 0:00:06]} Bd7 {[%emt 0:01:13]} 11. O-O {[%emt 0:03:10]} Qe8 {[%emt 0:01:48]} 12. b3 {[%emt 0:06:49]} Nh7 {[%emt 0:00:42]} 13. a3 {[%emt 0:01:25]} f5 {[%emt 0:02:38]} 14. exf5 {[%emt 0:03:26]} gxf5 {[%emt 0:00:09]} 15. Bh5 {[%emt 0:00:09]} Qc8 {[%emt 0:00:08]} 16. Be7 {[%emt 0:00:29]} Re8 {[%emt 0:00:25]} 17. Bxe8 {[%emt 0:01:16]} Qxe8 {[%emt 0:02:43]} 18. Bh4 {[%emt 0:00:02]} e4 {[%emt 0:04:14]} 19. Qc2 {[%emt 0:08:48]} Nc5 {[%emt 0:03:09]} 20. Bg3 {[%emt 0:06:58]} Qh5 {[%emt 0:20:03]} 21. Rae1 {[%emt 0:02:35]} Rf8 {[%emt 0:09:25]} 22. Ne2 {[%emt 0:02:56]} Nd3 {[%emt 0:01:16]} 23. Nf4 {[%emt 0:00:13]} Nxe1 {[%emt 0:00:35]} 24. Rxe1 {[%emt 0:00:03]} Qf7 {[%emt 0:18:32]} 25. c5 {[%emt 0:03:59]} Be5 {[%emt 0:05:11]} 26. Nc4 {[%emt 0:05:00]} a4 {[%emt 0:04:24]} 27. bxa4 {[%emt 0:05:46]} Nf6 {[%emt 0:05:24]} 28. Qb3 {[%emt 0:04:22]} Nxd5 {[%emt 0:11:13]} 29. Nxd5 {[%emt 0:03:17]} Be6 {[%emt 0:04:04]} 30. cxd6 {[%emt 0:05:32]} Bxd5 {[%emt 0:02:31]} 31. Nxe5 {[%emt 0:01:04]} Bxb3 {[%emt 0:00:15]} 32. Nxf7 {[%emt 0:00:04]} Kxf7 {[%emt 0:00:43]} 33. dxc7 {[%emt 0:00:03]} Bxa4 {[%emt 0:01:35]} 34. Rb1 {[%emt 0:00:06]} Bd7 {[%emt 0:00:51]} 35. Rxb7 {[%emt 0:00:25]} Rc8 {[%emt 0:00:09]} 36. Rb8 {[%emt 0:00:35]} Re8 {[%emt 0:00:00]} 1-0

[Event "11th Dolomiti Open 2020"]
[Site "Forni di Sopra"]
[Date "2020.09.27"]
[Round "2.3"]
[White "Fecker, Noah"]
[Black "Moroni, Luca Jr"]
[Result "0-1"]
[ECO "C84"]
[WhiteElo "2345"]
[BlackElo "2530"]
[Annotator "ChessBase"]
[PlyCount "100"]
[EventDate "2020.09.26"]
[EventType "swiss"]
[EventCountry "ITA"]
[SourceTitle "playchess.com"]
[Source "ChessBase"]
[SourceQuality "1"]
[TimeControl "40/5400+30:1800+30"]

1. e4 {[%emt 0:00:00]} e5 {[%emt 0:00:00]} 2. Nf3 {[%emt 0:00:00]} Nc6 {[%emt 0:00:00]} 3. Bb5 {[%emt 0:00:00]} a6 {[%emt 0:00:00]} 4. Ba4 {[%emt 0:00:00]} Nf6 {[%emt 0:00:00]} 5. O-O {[%emt 0:00:09]} d6 {[%emt 0:00:17]} 6. Re1 {[%emt 0:05:21]} Be7 {[%emt 0:00:46]} 7. c3 {[%emt 0:04:21]} O-O {[%emt 0:00:46]} 8. d3 {[%emt 0:03:24]} Re8 {[%emt 0:01:16]} 9. Nbd2 {[%emt 0:00:51]} Bf8 {[%emt 0:00:45]} 10. Nf1 {[%emt 0:01:32]} g6 {[%emt 0:01:16]} 11. Ng3 {[%emt 0:03:18]} Bg7 {[%emt 0:01:29]} 12. h3 {[%emt 0:02:49]} b5 {[%emt 0:01:13]} 13. Bc2 {[%emt 0:03:29]} Bb7 {[%emt 0:03:13]} 14. a4 {[%emt 0:03:07]} Nb8 {[%emt 0:05:54]} 15. Be3 {[%emt 0:07:33]} Nbd7 {[%emt 0:01:23]} 16. Qd2 {[%emt 0:04:44]} c5 {[%emt 0:03:45]} 17. Bh6 {[%emt 0:09:43]} Qc7 {[%emt 0:05:14]} 18. h4 {[%emt 0:04:14]} Nf8 {[%emt 0:09:42]} 19. h5 {[%emt 0:06:07]} Ne6 {[%emt 0:02:42]} 20. Bxg7 {[%emt 0:01:26]} Kxg7 {[%emt 0:00:31]} 21. h6+ {[%emt 0:01:02]} Kh8 {[%emt 0:01:02]} 22. Ng5 {[%emt 0:04:52]} Ng8 {[%emt 0:08:53]} 23. Nxe6 {[%emt 0:07:43]} fxe6 {[%emt 0:00:31]} 24. d4 {[%emt 0:03:43]} exd4 {[%emt 0:04:22]} 25. cxd4 {[%emt 0:00:11]} c4 {[%emt 0:07:36]} 26. e5 {[%emt 0:03:52]} d5 {[%emt 0:03:35]} 27. Nf1 {[%emt 0:02:44]} Qe7 {[%emt 0:02:51]} 28. Ra3 {[%emt 0:00:38]} Rf8 {[%emt 0:06:56]} 29. Rh3 {[%emt 0:03:55]} Rf7 {[%emt 0:01:33]} 30. Nh2 {[%emt 0:00:03]} b4 {[%emt 0:03:30]} 31. f4 {[%emt 0:03:16]} b3 {[%emt 0:02:29]} 32. Bb1 {[%emt 0:01:51]} a5 {[%emt 0:00:32]} 33. Nf3 {[%emt 0:00:14]} Qb4 {[%emt 0:05:21]} 34. Ng5 {[%emt 0:00:05]} Re7 {[%emt 0:02:33]} 35. Qe3 {[%emt 0:00:50]} Bc6 {[%emt 0:02:40]} 36. Bxg6 {[%emt 0:01:21]} hxg6 {[%emt 0:01:57]} 37. h7 {[%emt 0:00:01]} Nh6 {[%emt 0:00:26]} 38. Rxh6 {[%emt 0:00:06]} Be8 {[%emt 0:00:11]} 39. Qg3 {[%emt 0:04:26]} Rc8 {[%emt 0:01:30]} 40. Re3 {[%emt 0:02:34]} c3 {[%emt 0:03:39]} 41. bxc3 {[%emt 0:31:36]} Qb7 {[%emt 0:33:26]} 42. Re1 {[%emt 0:00:00]} b2 {[%emt 0:00:00]} 43. Rb1 {[%emt 0:00:00]} Qb3 {[%emt 0:00:00]} 44. Qf2 {[%emt 0:00:00]} Rb8 {[%emt 0:00:00]} 45. Nf3 {[%emt 0:00:00]} Rg7 {[%emt 0:00:00]} 46. g4 {[%emt 0:00:00]} Qxc3 {[%emt 0:00:00]} 47. Rh2 {[%emt 0:00:00]} Rxh7 {[%emt 0:00:00]} 48. Rg2 {[%emt 0:00:00]} Rh3 {[%emt 0:00:27]} 49. Ng5 {[%emt 0:00:12]} Qc1+ {[%emt 0:00:33]} 50. Qf1 {[%emt 0:00:14]} Qxf1+ {[%emt 0:00:09]} 0-1

[Event "11th Dolomiti Open 2020"]
[Site "Forni di Sopra"]
[Date "2020.09.27"]
[Round "2.4"]
[White "Gumularz, Szymon"]
[Black "Seresin, Francesco"]
[Result "1-0"]
[ECO "C65"]
[WhiteElo "2518"]
[BlackElo "2371"]
[Annotator "ChessBase"]
[PlyCount "75"]
[EventDate "2020.09.26"]
[EventType "swiss"]
[EventCountry "ITA"]
[SourceTitle "playchess.com"]
[Source "ChessBase"]
[SourceQuality "1"]
[TimeControl "40/5400+30:1800+30"]

1. e4 {[%emt 0:00:00]} e5 {[%emt 0:00:55]} 2. Nf3 {[%emt 0:00:51]} Nc6 {[%emt 0:00:19]} 3. Bb5 {[%emt 0:00:32]} Nf6 {[%emt 0:00:52]} 4. d3 {[%emt 0:01:12]} Bc5 {[%emt 0:00:37]} 5. O-O {[%emt 0:01:28]} O-O {[%emt 0:02:47]} 6. Bxc6 {[%emt 0:06:37]} bxc6 {[%emt 0:05:05]} 7. Nxe5 {[%emt 0:01:24]} d5 {[%emt 0:04:50]} 8. d4 {[%emt 0:02:41]} Bb6 {[%emt 0:06:37]} 9. exd5 {[%emt 0:13:32]} cxd5 {[%emt 0:00:43]} 10. Nc3 {[%emt 0:00:14]} Re8 {[%emt 0:04:10]} 11. Bg5 {[%emt 0:04:46]} Qd6 {[%emt 0:13:46]} 12. Bxf6 {[%emt 0:06:21]} gxf6 {[%emt 0:01:03]} 13. Ng4 {[%emt 0:02:35]} c6 {[%emt 0:03:29]} 14. Nh6+ {[%emt 0:11:32]} Kg7 {[%emt 0:06:03]} 15. Qh5 {[%emt 0:00:30]} Re7 {[%emt 0:06:55]} 16. Nf5+ {[%emt 0:13:11]} Bxf5 {[%emt 0:00:11]} 17. Qxf5 {[%emt 0:00:03]} Kh8 {[%emt 0:02:51]} 18. Rad1 {[%emt 0:03:01]} Rg8 {[%emt 0:00:59]} 19. Rd3 {[%emt 0:04:19]} Rg5 {[%emt 0:01:19]} 20. Qc8+ {[%emt 0:00:37]} Rg8 {[%emt 0:01:53]} 21. Qf5 {[%emt 0:12:57]} Rg5 {[%emt 0:00:19]} 22. Qf3 {[%emt 0:00:06]} Bc7 {[%emt 0:10:19]} 23. g3 {[%emt 0:00:17]} Kg7 {[%emt 0:02:11]} 24. Re3 {[%emt 0:01:03]} h5 {[%emt 0:02:07]} 25. Rxe7 {[%emt 0:08:15]} Qxe7 {[%emt 0:00:10]} 26. Nd1 {[%emt 0:01:38]} h4 {[%emt 0:06:00]} 27. Ne3 {[%emt 0:00:08]} Qe6 {[%emt 0:00:53]} 28. Re1 {[%emt 0:00:20]} hxg3 {[%emt 0:03:35]} 29. fxg3 {[%emt 0:01:51]} f5 {[%emt 0:00:21]} 30. Ng2 {[%emt 0:00:40]} Qh6 {[%emt 0:07:52]} 31. Rf1 {[%emt 0:00:25]} Qh3 {[%emt 0:02:03]} 32. Rf2 {[%emt 0:01:50]} Bb6 {[%emt 0:02:35]} 33. c3 {[%emt 0:00:12]} c5 {[%emt 0:00:10]} 34. Qe3 {[%emt 0:01:03]} f4 {[%emt 0:02:04]} 35. Qxf4 {[%emt 0:00:24]} Qh5 {[%emt 0:00:12]} 36. Qf6+ {[%emt 0:00:24]} Kg8 {[%emt 0:00:24]} 37. Nf4 {[%emt 0:00:09]} Qg4 {[%emt 0:00:57]} 38. Nxd5 {[%emt 0:00:38]} 1-0

[Event "11th Dolomiti Open 2020"]
[Site "Forni di Sopra"]
[Date "2020.09.27"]
[Round "2.5"]
[White "Lumachi, Gabriele"]
[Black "Valsecchi, Alessio"]
[Result "0-1"]
[ECO "E62"]
[WhiteElo "2327"]
[BlackElo "2491"]
[Annotator "ChessBase"]
[PlyCount "78"]
[EventDate "2020.09.26"]
[EventType "swiss"]
[EventCountry "ITA"]
[SourceTitle "playchess.com"]
[Source "ChessBase"]
[SourceQuality "1"]
[TimeControl "40/5400+30:1800+30"]

1. Nf3 {[%emt 0:00:00]} Nf6 {[%emt 0:02:00]} 2. c4 {[%emt 0:03:05]} g6 {[%emt 0:01:04]} 3. g3 {[%emt 0:01:30]} Bg7 {[%emt 0:00:29]} 4. Bg2 {[%emt 0:00:24]} O-O {[%emt 0:00:10]} 5. O-O {[%emt 0:00:41]} d6 {[%emt 0:01:05]} 6. d4 {[%emt 0:00:25]} Nc6 {[%emt 0:00:19]} 7. Nc3 {[%emt 0:01:14]} e5 {[%emt 0:00:16]} 8. dxe5 {[%emt 0:08:27]} dxe5 {[%emt 0:00:08]} 9. Bg5 {[%emt 0:10:44]} Be6 {[%emt 0:00:09]} 10. Qa4 {[%emt 0:03:05]} Qc8 {[%emt 0:00:49]} 11. Rad1 {[%emt 0:09:36]} Nd7 {[%emt 0:01:05]} 12. Nd5 {[%emt 0:06:04]} e4 {[%emt 0:11:58]} 13. Nd2 {[%emt 0:02:55]} f5 {[%emt 0:00:34]} 14. Qxc6 {[%emt 0:13:08]} bxc6 {[%emt 0:00:52]} 15. Ne7+ {[%emt 0:00:07]} Kf7 {[%emt 0:03:51]} 16. Nxc8 {[%emt 0:00:22]} Rfxc8 {[%emt 0:02:21]} 17. b3 {[%emt 0:04:27]} a5 {[%emt 0:10:36]} 18. f3 {[%emt 0:05:31]} exf3 {[%emt 0:03:07]} 19. Nxf3 {[%emt 0:01:09]} h6 {[%emt 0:08:12]} 20. Bc1 {[%emt 0:03:25]} a4 {[%emt 0:11:01]} 21. Nd4 {[%emt 0:08:06]} Bxd4+ {[%emt 0:02:39]} 22. Rxd4 {[%emt 0:00:06]} axb3 {[%emt 0:00:07]} 23. axb3 {[%emt 0:01:39]} Nc5 {[%emt 0:04:43]} 24. Rh4 {[%emt 0:08:06]} Nxb3 {[%emt 0:02:27]} 25. Bxc6 {[%emt 0:01:09]} Nxc1 {[%emt 0:08:17]} 26. Bxa8 {[%emt 0:04:37]} Nxe2+ {[%emt 0:00:11]} 27. Kf2 {[%emt 0:00:46]} g5 {[%emt 0:01:15]} 28. Rxh6 {[%emt 0:02:33]} Rxa8 {[%emt 0:00:07]} 29. Rh7+ {[%emt 0:00:32]} Kf6 {[%emt 0:04:48]} 30. Rh6+ {[%emt 0:00:33]} Ke5 {[%emt 0:04:16]} 31. Re1 {[%emt 0:00:04]} Bxc4 {[%emt 0:00:21]} 32. Rc6 {[%emt 0:00:05]} Kd5 {[%emt 0:01:11]} 33. Rxc7 {[%emt 0:00:38]} Ra2 {[%emt 0:00:09]} 34. Rd1+ {[%emt 0:01:05]} Nd4+ {[%emt 0:00:26]} 35. Kg1 {[%emt 0:00:24]} Bb5 {[%emt 0:01:59]} 36. Rc8 {[%emt 0:00:44]} Ke4 {[%emt 0:02:22]} 37. Re1+ {[%emt 0:00:03]} Kf3 {[%emt 0:00:40]} 38. Kh1 {[%emt 0:00:56]} Kg4 {[%emt 0:01:29]} 39. Rec1 {[%emt 0:00:30]} Bd3 {[%emt 0:01:00]} 0-1

[Event "11th Dolomiti Open 2020"]
[Site "Forni di Sopra"]
[Date "2020.09.27"]
[Round "2.6"]
[White "Blohberger, Felix"]
[Black "Fischer, Daniel"]
[Result "1-0"]
[ECO "E20"]
[WhiteElo "2467"]
[BlackElo "2331"]
[Annotator "ChessBase"]
[PlyCount "75"]
[EventDate "2020.09.26"]
[EventType "swiss"]
[EventCountry "ITA"]
[SourceTitle "playchess.com"]
[Source "ChessBase"]
[SourceQuality "1"]
[TimeControl "40/5400+30:1800+30"]

1. d4 {[%emt 0:00:00]} Nf6 {[%emt 0:00:00]} 2. c4 {[%emt 0:00:00]} e6 {[%emt 0:00:00]} 3. Nc3 {[%emt 0:00:00]} Bb4 {[%emt 0:00:00]} 4. f3 {[%emt 0:00:00]} c5 {[%emt 0:01:53]} 5. d5 {[%emt 0:00:01]} d6 {[%emt 0:00:44]} 6. e4 {[%emt 0:00:08]} b5 {[%emt 0:00:47]} 7. Nge2 {[%emt 0:00:12]} O-O {[%emt 0:06:52]} 8. Nf4 {[%emt 0:01:16]} e5 {[%emt 0:07:16]} 9. Nfe2 {[%emt 0:00:16]} bxc4 {[%emt 0:04:12]} 10. Ng3 {[%emt 0:00:11]} Nbd7 {[%emt 0:02:27]} 11. Be2 {[%emt 0:01:11]} Ne8 {[%emt 0:03:08]} 12. O-O {[%emt 0:02:52]} g6 {[%emt 0:03:08]} 13. Bh6 {[%emt 0:08:07]} Ng7 {[%emt 0:00:27]} 14. Qd2 {[%emt 0:02:40]} f6 {[%emt 0:07:06]} 15. Bxc4 {[%emt 0:10:09]} Rb8 {[%emt 0:07:42]} 16. Rab1 {[%emt 0:05:11]} Qe7 {[%emt 0:02:44]} 17. Qc2 {[%emt 0:08:38]} Rf7 {[%emt 0:11:25]} 18. Kh1 {[%emt 0:05:10]} Kh8 {[%emt 0:09:00]} 19. Be2 {[%emt 0:03:05]} Ba5 {[%emt 0:03:42]} 20. Nb5 {[%emt 0:03:39]} Bb6 {[%emt 0:02:03]} 21. Na3 {[%emt 0:01:47]} Bd8 {[%emt 0:02:41]} 22. Nc4 {[%emt 0:01:08]} Nb6 {[%emt 0:03:39]} 23. Na5 {[%emt 0:15:49]} Bd7 {[%emt 0:10:04]} 24. Nc6 {[%emt 0:06:56]} Bxc6 {[%emt 0:00:07]} 25. Bxg7+ {[%emt 0:00:07]} Kxg7 {[%emt 0:01:18]} 26. dxc6 {[%emt 0:00:06]} Qc7 {[%emt 0:03:07]} 27. Bb5 {[%emt 0:00:31]} Nc8 {[%emt 0:00:37]} 28. Qd3 {[%emt 0:02:12]} Qb6 {[%emt 0:03:00]} 29. a4 {[%emt 0:03:42]} Bc7 {[%emt 0:00:30]} 30. f4 {[%emt 0:09:27]} exf4 {[%emt 0:01:41]} 31. Ne2 {[%emt 0:00:49]} Ne7 {[%emt 0:02:14]} 32. Nxf4 {[%emt 0:06:56]} Nxc6 {[%emt 0:00:07]} 33. Ne6+ {[%emt 0:00:04]} Kh8 {[%emt 0:00:51]} 34. Ng5 {[%emt 0:00:53]} Rff8 {[%emt 0:00:52]} 35. Rxf6 {[%emt 0:00:39]} Rxf6 {[%emt 0:00:40]} 36. Qh3 {[%emt 0:00:05]} h5 {[%emt 0:01:08]} 37. Qd7 {[%emt 0:00:06]} Kg8 {[%emt 0:00:17]} 38. Bc4+ {[%emt 0:00:12]} 1-0

[Event "11th Dolomiti Open 2020"]
[Site "Forni di Sopra"]
[Date "2020.09.27"]
[Round "2.7"]
[White "Pasini, Nicolo"]
[Black "Cumming, Rhys"]
[Result "1/2-1/2"]
[ECO "C45"]
[WhiteElo "2276"]
[BlackElo "2299"]
[Annotator "ChessBase"]
[PlyCount "29"]
[EventDate "2020.09.26"]
[EventType "swiss"]
[EventCountry "ITA"]
[SourceTitle "playchess.com"]
[Source "ChessBase"]
[SourceQuality "1"]
[TimeControl "40/5400+30:1800+30"]

1. e4 {[%emt 0:02:14]} e5 {[%emt 0:00:27]} 2. Nf3 {[%emt 0:00:09]} Nc6 {[%emt 0:00:03]} 3. d4 {[%emt 0:00:07]} exd4 {[%emt 0:00:07]} 4. Nxd4 {[%emt 0:00:08]} Nf6 {[%emt 0:00:32]} 5. Nxc6 {[%emt 0:00:51]} bxc6 {[%emt 0:00:23]} 6. Nd2 {[%emt 0:00:06]} d5 {[%emt 0:11:10]} 7. exd5 {[%emt 0:00:08]} cxd5 {[%emt 0:03:19]} 8. Bb5+ {[%emt 0:00:06]} Bd7 {[%emt 0:00:43]} 9. Bxd7+ {[%emt 0:00:09]} Qxd7 {[%emt 0:00:58]} 10. O-O {[%emt 0:00:08]} Be7 {[%emt 0:02:05]} 11. b3 {[%emt 0:00:05]} O-O {[%emt 0:01:04]} 12. Qf3 {[%emt 0:00:06]} a5 {[%emt 0:06:34]} 13. Bb2 {[%emt 0:01:00]} a4 {[%emt 0:04:28]} 14. Rad1 {[%emt 0:00:07]} axb3 {[%emt 0:17:00]} 15. axb3 {[%emt 0:00:17]} 1/2-1/2

[Event "11th Dolomiti Open 2020"]
[Site "Forni di Sopra"]
[Date "2020.09.27"]
[Round "2.8"]
[White "Bordignon, Angelo"]
[Black "Gueci, Tea"]
[Result "1-0"]
[ECO "E20"]
[WhiteElo "2024"]
[BlackElo "2228"]
[Annotator "ChessBase"]
[PlyCount "65"]
[EventDate "2020.09.26"]
[EventType "swiss"]
[EventCountry "ITA"]
[SourceTitle "playchess.com"]
[Source "ChessBase"]
[SourceQuality "1"]
[TimeControl "40/5400+30:1800+30"]

1. d4 {[%emt 0:00:00]} Nf6 {[%emt 0:00:00]} 2. c4 {[%emt 0:00:00]} e6 {[%emt 0:00:00]} 3. Nc3 {[%emt 0:00:00]} Bb4 {[%emt 0:00:00]} 4. f3 {[%emt 0:00:00]} d5 {[%emt 0:00:01]} 5. a3 {[%emt 0:00:05]} Be7 {[%emt 0:00:10]} 6. cxd5 {[%emt 0:00:16]} exd5 {[%emt 0:00:20]} 7. e3 {[%emt 0:02:39]} O-O {[%emt 0:01:30]} 8. Bd3 {[%emt 0:00:13]} Re8 {[%emt 0:02:12]} 9. Nge2 {[%emt 0:00:12]} c5 {[%emt 0:02:19]} 10. O-O {[%emt 0:00:53]} Nc6 {[%emt 0:00:31]} 11. Kh1 {[%emt 0:03:05]} a6 {[%emt 0:04:50]} 12. Bb1 {[%emt 0:05:34]} g6 {[%emt 0:06:35]} 13. Ba2 {[%emt 0:07:50]} c4 {[%emt 0:08:25]} 14. e4 {[%emt 0:06:03]} b5 {[%emt 0:01:06]} 15. e5 {[%emt 0:01:05]} Nh5 {[%emt 0:01:42]} 16. g4 {[%emt 0:05:02]} Ng7 {[%emt 0:01:06]} 17. Nf4 {[%emt 0:00:31]} Be6 {[%emt 0:02:19]} 18. Bb1 {[%emt 0:04:01]} Qd7 {[%emt 0:05:27]} 19. Nce2 {[%emt 0:12:59]} Bd8 {[%emt 0:04:34]} 20. Be3 {[%emt 0:01:29]} Bb6 {[%emt 0:03:14]} 21. Bf2 {[%emt 0:00:28]} Qa7 {[%emt 0:02:31]} 22. Kg2 {[%emt 0:03:01]} Rad8 {[%emt 0:05:55]} 23. Qd2 {[%emt 0:08:13]} Na5 {[%emt 0:09:16]} 24. Bc2 {[%emt 0:01:55]} Bc8 {[%emt 0:01:37]} 25. Bh4 {[%emt 0:01:34]} Rd7 {[%emt 0:01:36]} 26. Bf6 {[%emt 0:00:51]} Ne6 {[%emt 0:10:28]} 27. Rad1 {[%emt 0:15:13]} Nc6 {[%emt 0:06:06]} 28. Nh3 {[%emt 0:05:49]} Ncxd4 {[%emt 0:18:19]} 29. Qh6 {[%emt 0:01:14]} Nxf3 {[%emt 0:01:32]} 30. Rxf3 {[%emt 0:00:22]} Bd8 {[%emt 0:00:27]} 31. Ng5 {[%emt 0:00:31]} Bxf6 {[%emt 0:00:17]} 32. Qxh7+ {[%emt 0:00:13]} Kf8 {[%emt 0:00:30]} 33. exf6 {[%emt 0:00:07]} 1-0